[Event "*** Titled Tuesday Blitz"]
[Site "Chess.com"]
[Date "2020.05.19"]
[Round "2"]
[White "CakeinSpace2002"]
[Black "PotapovaM"]
[Result "0-1"]
[WhiteElo "2203"]
[BlackElo "2434"]
[TimeControl "180+1"]
[EndTime "12:18:32 PDT"]
[Termination "PotapovaM won by resignation"]

1. e4 {[%clk 0:02:59.2]} 1... c5 {[%clk 0:03:00]} 2. Nf3 {[%clk 0:02:58]} 2...
d6 {[%clk 0:03:00.5]} 3. d4 {[%clk 0:02:57.1]} 3... cxd4 {[%clk 0:03:01.4]} 4.
Qxd4 {[%clk 0:02:57.5]} 4... Nc6 {[%clk 0:03:00.6]} 5. Bb5 {[%clk 0:02:56.5]}
5... Bd7 {[%clk 0:03:00.7]} 6. Bxc6 {[%clk 0:02:56.2]} 6... Bxc6 {[%clk
0:03:01.6]} 7. Nc3 {[%clk 0:02:56.3]} 7... Nf6 {[%clk 0:03:02.4]} 8. Bg5 {[%clk
0:02:54.8]} 8... e6 {[%clk 0:03:02.9]} 9. O-O-O {[%clk 0:02:54.6]} 9... Be7
{[%clk 0:03:03.3]} 10. Rhe1 {[%clk 0:02:51.1]} 10... O-O {[%clk 0:03:02.9]} 11.
e5 {[%clk 0:02:50.5]} 11... dxe5 {[%clk 0:03:02.5]} 12. Qh4 {[%clk 0:02:49.9]}
12... Qc7 {[%clk 0:03:01.9]} 13. Nxe5 {[%clk 0:02:48.5]} 13... Rfd8 {[%clk
0:03:01.9]} 14. Ng4 {[%clk 0:02:47.8]} 14... Rxd1+ {[%clk 0:02:53]} 15. Rxd1
{[%clk 0:02:44.3]} 15... Nxg4 {[%clk 0:02:53.1]} 16. Bxe7 {[%clk 0:02:42.4]}
16... Nh6 {[%clk 0:02:53.2]} 17. Bd6 {[%clk 0:02:32.8]} 17... Nf5 {[%clk
0:02:49.4]} 18. Bxc7 {[%clk 0:02:27.9]} 18... Nxh4 {[%clk 0:02:48.5]} 19. g3
{[%clk 0:02:27.4]} 19... Nf3 {[%clk 0:02:35.7]} 20. h4 {[%clk 0:02:22.5]} 20...
f6 {[%clk 0:02:25.1]} 21. Rd8+ {[%clk 0:01:56]} 21... Rxd8 {[%clk 0:02:24.9]}
22. Bxd8 {[%clk 0:01:56.9]} 22... Kf7 {[%clk 0:02:25.8]} 23. Bc7 {[%clk
0:01:51.1]} 23... e5 {[%clk 0:02:24.2]} 24. Bb8 {[%clk 0:01:47.1]} 24... a6
{[%clk 0:02:22.4]} 25. b4 {[%clk 0:01:47.1]} 25... Ke6 {[%clk 0:02:21.5]} 26. a4
{[%clk 0:01:46.4]} 26... h5 {[%clk 0:02:08.5]} 27. b5 {[%clk 0:01:42.9]} 27...
axb5 {[%clk 0:02:07]} 28. axb5 {[%clk 0:01:43.8]} 28... Bd7 {[%clk 0:02:07.7]}
29. Ba7 {[%clk 0:01:43]} 29... g5 {[%clk 0:02:03.4]} 30. Kb2 {[%clk 0:01:12]}
30... gxh4 {[%clk 0:01:59.4]} 31. gxh4 {[%clk 0:01:12.9]} 31... Nxh4 {[%clk
0:02:00.3]} 32. Kb3 {[%clk 0:01:11.3]} 32... Nf3 {[%clk 0:01:55.5]} 33. Kb4
{[%clk 0:01:09.1]} 33... h4 {[%clk 0:01:55]} 34. Ne2 {[%clk 0:01:08.7]} 34... h3
{[%clk 0:01:50.6]} 35. Ng3 {[%clk 0:01:06.9]} 35... f5 {[%clk 0:01:50.7]} 36. c4
{[%clk 0:01:05.5]} 36... f4 {[%clk 0:01:50.4]} 37. Nh1 {[%clk 0:01:04]} 37... h2
{[%clk 0:01:46]} 38. Ka5 {[%clk 0:01:00.4]} 38... Ke7 {[%clk 0:01:12.1]} 39.
Bc5+ {[%clk 0:00:57.8]} 39... Kd8 {[%clk 0:01:09.6]} 40. Kb6 {[%clk 0:00:34.6]}
40... Kc8 {[%clk 0:01:08.7]} 41. Bd6 {[%clk 0:00:16.4]} 41... Bh3 {[%clk
0:01:08.3]} 42. c5 {[%clk 0:00:16.3]} 42... Bg2 {[%clk 0:01:08.3]} 43. c6 {[%clk
0:00:16.1]} 43... bxc6 {[%clk 0:01:04.7]} 44. Kxc6 {[%clk 0:00:15.7]} 44... Bxh1
{[%clk 0:01:03.9]} 45. b6 {[%clk 0:00:12.9]} 45... Nd2+ {[%clk 0:00:59]} 46. Kc5
{[%clk 0:00:11.9]} 46... Bb7 {[%clk 0:00:59.1]} 47. Bxe5 {[%clk 0:00:10.1]}
47... h1=Q {[%clk 0:00:58.5]} 48. Bxf4 {[%clk 0:00:11]} 48... Qc6+ {[%clk
0:00:57.4]} 0-1

[Event "*** Titled Tuesday Blitz"]
[Site "Chess.com"]
[Date "2020.05.19"]
[Round "2"]
[White "chessuriel"]
[Black "kasparicy"]
[Result "1/2-1/2"]
[WhiteElo "2180"]
[BlackElo "2407"]
[TimeControl "180+1"]
[EndTime "12:18:33 PDT"]
[Termination "Game drawn by repetition"]

1. e4 {[%clk 0:03:00.9]} 1... c5 {[%clk 0:02:59.7]} 2. Nf3 {[%clk 0:02:59.2]}
2... d6 {[%clk 0:02:59.9]} 3. d4 {[%clk 0:02:59]} 3... cxd4 {[%clk 0:03:00.8]}
4. Nxd4 {[%clk 0:02:59.4]} 4... Nf6 {[%clk 0:02:52.1]} 5. Nc3 {[%clk 0:02:59.6]}
5... a6 {[%clk 0:02:52.4]} 6. Bc4 {[%clk 0:02:57.8]} 6... e6 {[%clk 0:02:52]} 7.
Bb3 {[%clk 0:02:58]} 7... Nbd7 {[%clk 0:02:52.5]} 8. Bg5 {[%clk 0:02:51.6]} 8...
Nc5 {[%clk 0:02:51.2]} 9. f4 {[%clk 0:02:51.3]} 9... Be7 {[%clk 0:02:51.6]} 10.
Qf3 {[%clk 0:02:49.1]} 10... Qc7 {[%clk 0:02:51.3]} 11. O-O-O {[%clk 0:02:47.6]}
11... b5 {[%clk 0:02:51.2]} 12. Rhe1 {[%clk 0:02:36.9]} 12... Bb7 {[%clk
0:02:51]} 13. f5 {[%clk 0:02:32.4]} 13... e5 {[%clk 0:02:38.6]} 14. Bxf6 {[%clk
0:02:22.7]} 14... Nxb3+ {[%clk 0:02:36.4]} 15. Nxb3 {[%clk 0:02:19.5]} 15...
Bxf6 {[%clk 0:02:35.5]} 16. Nd5 {[%clk 0:02:19.1]} 16... Bxd5 {[%clk 0:02:33.9]}
17. Rxd5 {[%clk 0:02:20]} 17... Rc8 {[%clk 0:02:34]} 18. Qd3 {[%clk 0:02:05.7]}
18... O-O {[%clk 0:02:27]} 19. Kb1 {[%clk 0:02:01.9]} 19... Be7 {[%clk
0:02:17.8]} 20. Nc1 {[%clk 0:01:54.8]} 20... Qb6 {[%clk 0:02:07]} 21. Rd1 {[%clk
0:01:44.9]} 21... Rc4 {[%clk 0:02:05.2]} 22. Ne2 {[%clk 0:01:41.1]} 22... Rfc8
{[%clk 0:02:04.3]} 23. f6 {[%clk 0:01:18.6]} 23... Bxf6 {[%clk 0:01:45.9]} 24.
Rxd6 {[%clk 0:01:17.7]} 24... R4c6 {[%clk 0:01:42.1]} 25. Nc3 {[%clk 0:01:12]}
25... g6 {[%clk 0:01:11.2]} 26. Rd7 {[%clk 0:01:02]} 26... Qf2 {[%clk
0:00:59.3]} 27. Rf1 {[%clk 0:00:40.1]} 27... Qh4 {[%clk 0:00:48.1]} 28. Nd5
{[%clk 0:00:32.9]} 28... Kg7 {[%clk 0:00:25.2]} 29. Qf3 {[%clk 0:00:28]} 29...
Re8 {[%clk 0:00:13.2]} 30. Qb3 {[%clk 0:00:23.8]} 30... Ree6 {[%clk 0:00:12.7]}
31. Nc7 {[%clk 0:00:21.4]} 31... Rxc7 {[%clk 0:00:10.5]} 32. Rxc7 {[%clk
0:00:20.7]} 32... Kg8 {[%clk 0:00:08]} 33. Rc8+ {[%clk 0:00:19.7]} 33... Kg7
{[%clk 0:00:08.3]} 34. Rc7 {[%clk 0:00:20.6]} 34... Kg8 {[%clk 0:00:08.5]} 35.
Rd1 {[%clk 0:00:19.6]} 35... Qxe4 {[%clk 0:00:06.9]} 36. Rc8+ {[%clk 0:00:18.1]}
36... Kg7 {[%clk 0:00:07.3]} 37. Rc7 {[%clk 0:00:18.6]} 37... Kg8 {[%clk
0:00:06.7]} 38. Rc8+ {[%clk 0:00:17.9]} 38... Kg7 {[%clk 0:00:06.7]} 39. Rc7
{[%clk 0:00:17.6]} 39... Kg8 {[%clk 0:00:07.1]} 1/2-1/2

[Event "*** Titled Tuesday Blitz"]
[Site "Chess.com"]
[Date "2020.05.19"]
[Round "2"]
[White "grandcoach"]
[Black "aNaartjieZA"]
[Result "0-1"]
[WhiteElo "2061"]
[BlackElo "2589"]
[TimeControl "180+1"]
[EndTime "12:18:34 PDT"]
[Termination "aNaartjieZA won on time"]

1. e4 {[%clk 0:03:00.9]} 1... e6 {[%clk 0:02:59.5]} 2. Nf3 {[%clk 0:02:59.7]}
2... d5 {[%clk 0:02:59.2]} 3. e5 {[%clk 0:03:00.2]} 3... c5 {[%clk 0:02:59]} 4.
b4 {[%clk 0:03:00.7]} 4... d4 {[%clk 0:02:55.1]} 5. Bd3 {[%clk 0:02:49.4]} 5...
Ne7 {[%clk 0:02:53.2]} 6. bxc5 {[%clk 0:02:44.3]} 6... Nbc6 {[%clk 0:02:47.7]}
7. Na3 {[%clk 0:02:27.3]} 7... Ng6 {[%clk 0:02:45.4]} 8. Nc4 {[%clk 0:02:25.6]}
8... Bxc5 {[%clk 0:02:44.5]} 9. O-O {[%clk 0:02:15]} 9... O-O {[%clk 0:02:31.6]}
10. Re1 {[%clk 0:02:13]} 10... b5 {[%clk 0:02:28.8]} 11. Nd6 {[%clk 0:01:57.6]}
11... Bxd6 {[%clk 0:02:26.5]} 12. exd6 {[%clk 0:01:58.5]} 12... a6 {[%clk
0:02:26.4]} 13. a4 {[%clk 0:01:55]} 13... b4 {[%clk 0:02:23.7]} 14. Be4 {[%clk
0:01:42.2]} 14... Qxd6 {[%clk 0:02:22.7]} 15. Bb2 {[%clk 0:01:20]} 15... Rb8
{[%clk 0:02:06.6]} 16. Bxc6 {[%clk 0:01:10.1]} 16... Qxc6 {[%clk 0:02:06]} 17.
Nxd4 {[%clk 0:01:11]} 17... Qd5 {[%clk 0:02:05.6]} 18. Qf3 {[%clk 0:00:55.6]}
18... Bb7 {[%clk 0:01:58.2]} 19. Qxd5 {[%clk 0:00:54.5]} 19... Bxd5 {[%clk
0:01:59.1]} 20. a5 {[%clk 0:00:52.6]} 20... Rfc8 {[%clk 0:01:57.8]} 21. Re3
{[%clk 0:00:47.5]} 21... Rc5 {[%clk 0:01:46.6]} 22. c3 {[%clk 0:00:44.7]} 22...
bxc3 {[%clk 0:01:39.4]} 23. Bxc3 {[%clk 0:00:45.6]} 23... Bc4 {[%clk 0:01:35.1]}
24. g3 {[%clk 0:00:44.2]} 24... Ne7 {[%clk 0:01:31.8]} 25. Nf3 {[%clk 0:00:31]}
25... f6 {[%clk 0:01:27.7]} 26. Bd4 {[%clk 0:00:28.3]} 26... Rf5 {[%clk
0:01:23.7]} 27. Rc3 {[%clk 0:00:21.2]} 27... Bb5 {[%clk 0:01:19.3]} 28. Nh4
{[%clk 0:00:19.1]} 28... Rd5 {[%clk 0:01:18.4]} 29. Bb6 {[%clk 0:00:17.7]} 29...
Rxd2 {[%clk 0:01:15.8]} 30. Rc7 {[%clk 0:00:17.6]} 30... Nd5 {[%clk 0:01:14.9]}
31. Ra7 {[%clk 0:00:17]} 31... Nxb6 {[%clk 0:01:13.3]} 32. axb6 {[%clk
0:00:17.9]} 32... Rxb6 {[%clk 0:01:13.4]} 33. Rc1 {[%clk 0:00:16.8]} 33... Rc6
{[%clk 0:01:06.6]} 34. Rxc6 {[%clk 0:00:16.4]} 34... Bxc6 {[%clk 0:01:06.6]} 35.
f3 {[%clk 0:00:12.9]} 35... Bb5 {[%clk 0:01:03.8]} 36. Re7 {[%clk 0:00:12.3]}
36... Bc4 {[%clk 0:01:00.4]} 37. Rc7 {[%clk 0:00:11.1]} 37... Bb5 {[%clk
0:00:51.8]} 38. Ng2 {[%clk 0:00:10.5]} 38... Rd7 {[%clk 0:00:45.5]} 39. Rc8+
{[%clk 0:00:08.5]} 39... Kf7 {[%clk 0:00:44.5]} 40. Nf4 {[%clk 0:00:09]} 40...
a5 {[%clk 0:00:42]} 41. Ra8 {[%clk 0:00:07.4]} 41... a4 {[%clk 0:00:41.7]} 42.
h4 {[%clk 0:00:04]} 42... e5 {[%clk 0:00:41.6]} 43. Ng2 {[%clk 0:00:03]} 43...
Rd1+ {[%clk 0:00:40]} 44. Kf2 {[%clk 0:00:02.1]} 44... Rd2+ {[%clk 0:00:40.1]}
45. Kg1 {[%clk 0:00:01.5]} 45... Rd3 {[%clk 0:00:39.6]} 0-1

[Event "*** Titled Tuesday Blitz"]
[Site "Chess.com"]
[Date "2020.05.19"]
[Round "2"]
[White "1g41-0"]
[Black "124chess"]
[Result "1-0"]
[WhiteElo "2520"]
[BlackElo "2760"]
[TimeControl "180+1"]
[EndTime "12:18:35 PDT"]
[Termination "1g41-0 won by resignation"]

1. d4 {[%clk 0:03:00.9]} 1... d5 {[%clk 0:02:59.7]} 2. c4 {[%clk 0:02:55.9]}
2... e6 {[%clk 0:02:59.8]} 3. Nc3 {[%clk 0:02:54.9]} 3... c6 {[%clk 0:03:00]} 4.
Nf3 {[%clk 0:02:53.6]} 4... dxc4 {[%clk 0:03:00.1]} 5. e4 {[%clk 0:02:42.7]}
5... b5 {[%clk 0:02:58.5]} 6. e5 {[%clk 0:02:41.1]} 6... Ne7 {[%clk 0:02:52.8]}
7. Bg5 {[%clk 0:02:36.7]} 7... h6 {[%clk 0:02:47.5]} 8. Bh4 {[%clk 0:02:22.5]}
8... Qa5 {[%clk 0:02:47.2]} 9. Be2 {[%clk 0:02:09.6]} 9... Nd5 {[%clk
0:02:46.3]} 10. O-O {[%clk 0:02:04.2]} 10... Nxc3 {[%clk 0:02:38.3]} 11. bxc3
{[%clk 0:02:05.1]} 11... Qxc3 {[%clk 0:02:23.7]} 12. a4 {[%clk 0:02:01]} 12...
a6 {[%clk 0:02:23.5]} 13. axb5 {[%clk 0:01:53.1]} 13... cxb5 {[%clk 0:02:24.4]}
14. d5 {[%clk 0:01:53.4]} 14... g5 {[%clk 0:02:03.2]} 15. dxe6 {[%clk
0:01:31.4]} 15... Bxe6 {[%clk 0:01:59.7]} 16. Nd4 {[%clk 0:01:21.9]} 16... Bc5
{[%clk 0:01:32.9]} 17. Nxb5 {[%clk 0:01:05.4]} 17... axb5 {[%clk 0:01:22]} 18.
Rxa8 {[%clk 0:01:04.3]} 18... O-O {[%clk 0:01:17.3]} 19. Bg3 {[%clk 0:01:00.6]}
19... Nd7 {[%clk 0:01:17]} 20. Ra6 {[%clk 0:00:56.7]} 20... Nb8 {[%clk
0:00:56.6]} 21. Rxe6 {[%clk 0:00:36.4]} 21... fxe6 {[%clk 0:00:56.6]} 22. Bg4
{[%clk 0:00:37]} 22... Kf7 {[%clk 0:00:17.3]} 23. Qb1 {[%clk 0:00:27.8]} 23...
Qd3 {[%clk 0:00:03.4]} 24. Qxb5 {[%clk 0:00:27.3]} 24... Qd5 {[%clk 0:00:01.9]}
25. Qb1 {[%clk 0:00:17.1]} 25... Nd7 {[%clk 0:00:01.9]} 26. Qh7+ {[%clk
0:00:16.6]} 26... Ke8 {[%clk 0:00:02.2]} 27. Rd1 {[%clk 0:00:15.4]} 27... Qc6
{[%clk 0:00:02.2]} 28. Qxh6 {[%clk 0:00:13]} 28... Kd8 {[%clk 0:00:02.5]} 29.
Qxe6 {[%clk 0:00:12.6]} 29... Qxe6 {[%clk 0:00:01.1]} 30. Bxe6 {[%clk
0:00:13.5]} 30... c3 {[%clk 0:00:01.5]} 31. Rxd7+ {[%clk 0:00:13.4]} 31... Ke8
{[%clk 0:00:02.4]} 32. Rd1 {[%clk 0:00:11.1]} 32... Ba3 {[%clk 0:00:01.9]} 33.
Bb3 {[%clk 0:00:10.6]} 33... Rf5 {[%clk 0:00:01.3]} 34. e6 {[%clk 0:00:10.5]}
34... Rb5 {[%clk 0:00:01.1]} 35. Ba4 {[%clk 0:00:10.8]} 35... Ke7 {[%clk
0:00:01.7]} 36. Bxb5 {[%clk 0:00:11.1]} 36... c2 {[%clk 0:00:02.2]} 37. Rf1
{[%clk 0:00:11.4]} 37... c1=Q {[%clk 0:00:03]} 38. Rxc1 {[%clk 0:00:11.9]} 38...
Bxc1 {[%clk 0:00:03.9]} 39. Bd7 {[%clk 0:00:12.4]} 1-0

[Event "*** Titled Tuesday Blitz"]
[Site "Chess.com"]
[Date "2020.05.19"]
[Round "2"]
[White "BlackBoarder"]
[Black "Marcan2b"]
[Result "0-1"]
[WhiteElo "2629"]
[BlackElo "2429"]
[TimeControl "180+1"]
[EndTime "12:18:35 PDT"]
[Termination "Marcan2b won on time"]

1. e4 {[%clk 0:03:00.4]} 1... e6 {[%clk 0:02:59.2]} 2. d4 {[%clk 0:03:00]} 2...
d5 {[%clk 0:02:58.8]} 3. Bd3 {[%clk 0:03:00.2]} 3... dxe4 {[%clk 0:02:55.8]} 4.
Bxe4 {[%clk 0:03:00.3]} 4... Nf6 {[%clk 0:02:56.7]} 5. Bf3 {[%clk 0:03:00.4]}
5... c5 {[%clk 0:02:54.4]} 6. Ne2 {[%clk 0:02:59.9]} 6... Be7 {[%clk 0:02:49.8]}
7. Be3 {[%clk 0:02:59.1]} 7... cxd4 {[%clk 0:02:46.8]} 8. Qxd4 {[%clk
0:02:58.5]} 8... Qa5+ {[%clk 0:02:39.2]} 9. Nbc3 {[%clk 0:02:52.8]} 9... O-O
{[%clk 0:02:36.2]} 10. O-O-O {[%clk 0:02:45.9]} 10... Nc6 {[%clk 0:02:32.9]} 11.
Qa4 {[%clk 0:02:37.4]} 11... Qxa4 {[%clk 0:02:31.7]} 12. Nxa4 {[%clk 0:02:36.4]}
12... Ne5 {[%clk 0:02:31.8]} 13. Nd4 {[%clk 0:02:32.1]} 13... Nxf3 {[%clk
0:02:29]} 14. Nxf3 {[%clk 0:02:33]} 14... Bd7 {[%clk 0:02:28.2]} 15. Bc5 {[%clk
0:02:13.2]} 15... Rfe8 {[%clk 0:02:06.3]} 16. Bxe7 {[%clk 0:01:39.2]} 16... Rxe7
{[%clk 0:02:07.2]} 17. Nc3 {[%clk 0:01:22.9]} 17... Bc6 {[%clk 0:02:00.9]} 18.
Rd3 {[%clk 0:01:22.6]} 18... Ree8 {[%clk 0:01:45]} 19. h3 {[%clk 0:01:08.3]}
19... Rac8 {[%clk 0:01:42.6]} 20. Rhd1 {[%clk 0:01:02.2]} 20... h6 {[%clk
0:01:29]} 21. g3 {[%clk 0:00:58.3]} 21... a6 {[%clk 0:01:14.2]} 22. Ne5 {[%clk
0:00:53]} 22... Bg2 {[%clk 0:01:05.6]} 23. h4 {[%clk 0:00:48.3]} 23... Bh3
{[%clk 0:01:00.2]} 24. Nd7 {[%clk 0:00:22.6]} 24... Ng4 {[%clk 0:00:32.4]} 25.
R1d2 {[%clk 0:00:21.7]} 25... Bf1 {[%clk 0:00:28.9]} 26. Rd4 {[%clk 0:00:19.9]}
26... Nh2 {[%clk 0:00:26.4]} 27. Rd1 {[%clk 0:00:15.1]} 27... Bh3 {[%clk
0:00:22.6]} 28. Ne5 {[%clk 0:00:14.5]} 28... Bg2 {[%clk 0:00:18.4]} 29. Rf4
{[%clk 0:00:09.8]} 29... f6 {[%clk 0:00:17.8]} 30. Nd3 {[%clk 0:00:06]} 30... e5
{[%clk 0:00:17.6]} 31. Rb4 {[%clk 0:00:06.2]} 31... Nf3 {[%clk 0:00:15.8]} 32.
Rxb7 {[%clk 0:00:04.9]} 32... Nxh4 {[%clk 0:00:12]} 33. gxh4 {[%clk 0:00:04.5]}
33... Bxb7 {[%clk 0:00:11.6]} 34. Rg1 {[%clk 0:00:03.4]} 34... Kf7 {[%clk
0:00:11.6]} 35. Nb4 {[%clk 0:00:02.5]} 35... Rc4 {[%clk 0:00:11.4]} 36. h5
{[%clk 0:00:01.4]} 36... Rxb4 {[%clk 0:00:11.3]} 0-1

[Event "*** Titled Tuesday Blitz"]
[Site "Chess.com"]
[Date "2020.05.19"]
[Round "2"]
[White "miruna_daria28"]
[Black "SanchezKelvin"]
[Result "0-1"]
[WhiteElo "2244"]
[BlackElo "2458"]
[TimeControl "180+1"]
[EndTime "12:18:35 PDT"]
[Termination "SanchezKelvin won by resignation"]

1. e4 {[%clk 0:03:00.9]} 1... c5 {[%clk 0:02:59.8]} 2. Nf3 {[%clk 0:03:00.4]}
2... d6 {[%clk 0:02:59.9]} 3. d4 {[%clk 0:03:00.2]} 3... cxd4 {[%clk 0:03:00.8]}
4. Nxd4 {[%clk 0:03:00.5]} 4... Nf6 {[%clk 0:03:01.1]} 5. Nc3 {[%clk 0:03:00.5]}
5... g6 {[%clk 0:03:01]} 6. Be3 {[%clk 0:02:59.9]} 6... Bg7 {[%clk 0:03:01.3]}
7. f3 {[%clk 0:02:58.6]} 7... O-O {[%clk 0:03:01.4]} 8. Qd2 {[%clk 0:02:58]}
8... Nc6 {[%clk 0:03:01.5]} 9. g4 {[%clk 0:02:57.8]} 9... Nxd4 {[%clk
0:03:00.9]} 10. Bxd4 {[%clk 0:02:57.1]} 10... Be6 {[%clk 0:03:01.8]} 11. O-O-O
{[%clk 0:02:55.9]} 11... Qa5 {[%clk 0:03:01.9]} 12. Kb1 {[%clk 0:02:38.3]} 12...
Rfc8 {[%clk 0:03:00.7]} 13. g5 {[%clk 0:02:20.8]} 13... Nd7 {[%clk 0:02:19.3]}
14. Bxg7 {[%clk 0:01:48.2]} 14... Kxg7 {[%clk 0:02:19]} 15. Qd4+ {[%clk
0:01:43.8]} 15... Kg8 {[%clk 0:02:15.2]} 16. Nd5 {[%clk 0:01:25]} 16... Bxd5
{[%clk 0:02:07.5]} 17. exd5 {[%clk 0:01:23.9]} 17... Qc5 {[%clk 0:02:07.1]} 18.
Qd2 {[%clk 0:01:02.8]} 18... Ne5 {[%clk 0:02:04.6]} 19. Be2 {[%clk 0:00:48.4]}
19... b5 {[%clk 0:01:49.2]} 20. h4 {[%clk 0:00:45.7]} 20... Rab8 {[%clk
0:01:38.3]} 21. h5 {[%clk 0:00:41.3]} 21... Nc4 {[%clk 0:01:37.3]} 22. Bxc4
{[%clk 0:00:34.7]} 22... bxc4 {[%clk 0:01:33.9]} 23. c3 {[%clk 0:00:33.9]} 23...
Rf8 {[%clk 0:01:00.8]} 24. hxg6 {[%clk 0:00:22]} 24... fxg6 {[%clk 0:01:00.5]}
25. Rh6 {[%clk 0:00:08.6]} 25... Rf7 {[%clk 0:00:58.9]} 26. Rdh1 {[%clk
0:00:07.7]} 26... Qc8 {[%clk 0:00:45.5]} 27. Qh2 {[%clk 0:00:08.1]} 27... Qf5+
{[%clk 0:00:43.2]} 28. Ka1 {[%clk 0:00:08.5]} 28... Qxf3 {[%clk 0:00:37.6]} 29.
Rxg6+ {[%clk 0:00:08.8]} 29... Kf8 {[%clk 0:00:37.8]} 30. Rf6 {[%clk 0:00:04.2]}
30... Qxd5 {[%clk 0:00:28.9]} 31. Qh6+ {[%clk 0:00:03.9]} 31... Ke8 {[%clk
0:00:26.1]} 32. Rxf7 {[%clk 0:00:04.8]} 32... Qxf7 {[%clk 0:00:23.5]} 33. Qxh7
{[%clk 0:00:05.7]} 33... Qxh7 {[%clk 0:00:23]} 34. Rxh7 {[%clk 0:00:06.4]} 34...
Rb5 {[%clk 0:00:22.1]} 35. g6 {[%clk 0:00:05.2]} 35... Rg5 {[%clk 0:00:20.4]}
36. Rh1 {[%clk 0:00:04]} 36... Rxg6 {[%clk 0:00:20.1]} 37. b3 {[%clk 0:00:04.9]}
37... cxb3 {[%clk 0:00:19.6]} 38. axb3 {[%clk 0:00:05.1]} 38... Rg2 {[%clk
0:00:20.5]} 39. c4 {[%clk 0:00:04.6]} 39... Kd7 {[%clk 0:00:20.6]} 40. Re1
{[%clk 0:00:04.8]} 40... e5 {[%clk 0:00:20.5]} 41. Kb1 {[%clk 0:00:05.3]} 41...
Kc6 {[%clk 0:00:20.5]} 0-1

[Event "*** Titled Tuesday Blitz"]
[Site "Chess.com"]
[Date "2020.05.19"]
[Round "2"]
[White "Skatchkov_V"]
[Black "Zhuu96"]
[Result "0-1"]
[WhiteElo "2541"]
[BlackElo "2865"]
[TimeControl "180+1"]
[EndTime "12:18:36 PDT"]
[Termination "Zhuu96 won on time"]

1. d4 {[%clk 0:03:00.6]} 1... Nf6 {[%clk 0:02:59.5]} 2. c4 {[%clk 0:03:00.8]}
2... e6 {[%clk 0:02:59.2]} 3. Nf3 {[%clk 0:03:01.2]} 3... d5 {[%clk 0:02:59.1]}
4. g3 {[%clk 0:03:01.6]} 4... Be7 {[%clk 0:02:58.7]} 5. Bg2 {[%clk 0:03:01.4]}
5... O-O {[%clk 0:02:58.7]} 6. O-O {[%clk 0:03:01.7]} 6... c6 {[%clk 0:02:52]}
7. Nc3 {[%clk 0:02:54.7]} 7... b6 {[%clk 0:02:51.9]} 8. b3 {[%clk 0:02:42.7]}
8... Bb7 {[%clk 0:02:48.1]} 9. Bb2 {[%clk 0:02:42.6]} 9... Na6 {[%clk
0:02:48.4]} 10. Rc1 {[%clk 0:02:20]} 10... dxc4 {[%clk 0:02:46.9]} 11. bxc4
{[%clk 0:02:18.3]} 11... c5 {[%clk 0:02:46.3]} 12. d5 {[%clk 0:02:12.3]} 12...
exd5 {[%clk 0:02:29.3]} 13. Nh4 {[%clk 0:01:54.5]} 13... Nc7 {[%clk 0:02:28.3]}
14. Nf5 {[%clk 0:01:44.6]} 14... Re8 {[%clk 0:02:27.8]} 15. Qd2 {[%clk
0:01:25.7]} 15... Bf8 {[%clk 0:01:57.5]} 16. Rfd1 {[%clk 0:01:19.8]} 16... g6
{[%clk 0:01:53.7]} 17. Nh6+ {[%clk 0:01:10.9]} 17... Bxh6 {[%clk 0:01:39.1]} 18.
Qxh6 {[%clk 0:01:11.8]} 18... Qd6 {[%clk 0:01:23.5]} 19. Nxd5 {[%clk 0:00:51.1]}
19... Bxd5 {[%clk 0:01:18.4]} 20. Bxd5 {[%clk 0:00:50.5]} 20... Ncxd5 {[%clk
0:01:17.3]} 21. Rxd5 {[%clk 0:00:50.8]} 21... Qc6 {[%clk 0:01:09]} 22. Rcd1
{[%clk 0:00:49.1]} 22... Rxe2 {[%clk 0:00:58.7]} 23. Rd8+ {[%clk 0:00:14.9]}
23... Re8 {[%clk 0:00:52.1]} 24. Rxa8 {[%clk 0:00:13.6]} 24... Rxa8 {[%clk
0:00:45.4]} 25. Qg5 {[%clk 0:00:11.9]} 25... Ne8 {[%clk 0:00:43.6]} 26. Re1
{[%clk 0:00:10.3]} 26... f6 {[%clk 0:00:40.8]} 27. Qf4 {[%clk 0:00:08.1]} 27...
Rd8 {[%clk 0:00:39.3]} 28. h4 {[%clk 0:00:07.8]} 28... Kf7 {[%clk 0:00:30.1]}
29. Kh2 {[%clk 0:00:07.1]} 29... Ng7 {[%clk 0:00:29.2]} 30. Qh6 {[%clk 0:00:07]}
30... Qf3 {[%clk 0:00:27.5]} 31. Qe3 {[%clk 0:00:03.2]} 31... Qxe3 {[%clk
0:00:26.5]} 32. Rxe3 {[%clk 0:00:03.5]} 32... Rd2 {[%clk 0:00:26.9]} 33. Rb3
{[%clk 0:00:02.5]} 33... Rxf2+ {[%clk 0:00:22.3]} 0-1